lending/lending_fUSD_20250224
["ID","MTS","AMOUNT","RATE_DAILY","PERIOD"]
[354282408,1740393065297,-151.0,0.00016602,2]
[354282409,1740393065307,-151.0,0.00016602,2]
[354282410,1740393065317,-500.0,0.00016602,2]
[354282411,1740393065326,-151.0,0.00016602,2]
[354282412,1740393065336,-208.153228,0.00016602,2]
[354282413,1740393065346,-500.0,0.00016602,2]
[354282414,1740393065355,-500.0,0.00016602,2]
[354282415,1740393065365,-500.0,0.00016602,2]
[354282416,1740393065375,-500.0,0.00016602,2]
[354282417,1740393065385,-500.0,0.00016602,2]
[354282418,1740393065395,-371.92919958,0.00016602,2]
[354282419,1740393065405,-151.0,0.00016602,2]
[354282420,1740393065415,-500.0,0.00016602,2]
[354282421,1740393065424,-829.52,0.00016602,2]
[354282422,1740393065433,-500.0,0.00016602,2]
[354282423,1740393065443,-500.0,0.00016602,2]
[354282424,1740393065453,-500.0,0.00016602,2]
[354282425,1740393065463,-614.79,0.00016602,2]
[354282426,1740393065472,-500.0,0.00016602,2]
[354282427,1740393065481,-500.0,0.00016602,2]
[354282428,1740393065491,-579.34,0.00016602,2]
[354282429,1740393065499,-523.22266142,0.00016602,2]
[354282430,1740393065508,-656.83,0.00016602,2]
[354282431,1740393065519,-229.613081,0.00016602,2]
[354282432,1740393065527,-500.0,0.00016602,2]
[354282433,1740393065536,-801.72,0.00016602,2]
[354282434,1740393065545,-500.0,0.00016602,2]
[354282435,1740393065558,-229.613081,0.00016602,2]
[354282436,1740393065567,-500.0,0.00016602,2]
[354282437,1740393065577,-500.0,0.00016602,2]
[354282438,1740393065586,-500.0,0.00016602,2]
[354282439,1740393065595,-778.26,0.00016602,2]
[354282440,1740393065604,-812.09,0.00016602,2]
[354282441,1740393065613,-563.47,0.00016602,2]
[354282442,1740393065622,-500.0,0.00016602,2]
[354282443,1740393065631,-500.0,0.00016602,2]
[354282444,1740393065640,-508.94731764,0.00016602,2]
[354282445,1740393065649,-500.0,0.00016602,2]
[354282446,1740393065659,-594.42,0.00016602,2]
[354282447,1740393065668,-500.0,0.00016602,2]
[354282448,1740393065677,-1017.59,0.00016602,2]
[354282449,1740393065687,-500.0,0.00016602,2]
[354282450,1740393065696,-500.0,0.00016602,2]
[354282451,1740393065706,-1173.0,0.00016602,2]
[354282452,1740393065716,-500.0,0.00016602,2]
[354282453,1740393065725,-500.0,0.00016602,2]
[354282454,1740393065735,-500.0,0.00016602,2]
[354282455,1740393065744,-985.36,0.00016602,2]
[354282456,1740393065754,-505.23241826,0.00016602,2]
[354282457,1740393065763,-500.0,0.00016602,2]
[354282458,1740393065772,-714.1,0.00016602,2]
[354282459,1740393065782,-500.0,0.00016602,2]
[354282460,1740393065791,-601.34,0.00016602,2]
[354282461,1740393065802,-500.0,0.00016602,2]
[354282462,1740393065812,-500.0,0.00016602,2]
[354282463,1740393065822,-500.0,0.00016602,2]
[354282464,1740393065832,-1166.36,0.00016602,2]
[354282465,1740393065844,-500.0,0.00016602,2]
[354282466,1740393065855,-500.0,0.00016602,2]
[354282467,1740393065865,-500.0,0.00016602,2]
[354282468,1740393065874,-500.0,0.00016602,2]
[354282469,1740393065885,-655.58,0.00016602,2]
[354282470,1740393065894,-568.87,0.00016602,2]
[354282471,1740393065904,-500.0,0.00016602,2]
[354282472,1740393065913,-500.0,0.00016602,2]
[354282473,1740393065922,-500.0,0.00016602,2]
[354282474,1740393065931,-500.0,0.00016602,2]
[354282475,1740393065940,-500.0,0.00016602,2]
[354282476,1740393065949,-500.0,0.00016602,2]
[354282477,1740393065959,-500.0,0.00016602,2]
[354282478,1740393065967,-500.0,0.00016602,2]
[354282479,1740393065976,-500.0,0.00016602,2]
[354282480,1740393065986,-817.86,0.00016602,2]
[354282481,1740393065994,-500.0,0.00016602,2]
[354282482,1740393066003,-500.0,0.00016602,2]
[354282483,1740393066013,-500.0,0.00016602,2]
[354282484,1740393066023,-554.61,0.00016602,2]
[354282485,1740393066032,-500.0,0.00016602,2]
[354282486,1740393066041,-607.13,0.00016602,2]
[354282487,1740393066052,-299.279106,0.00016602,2]
[354282488,1740393066062,-500.0,0.00016602,2]
[354282489,1740393066071,-587.42,0.00016602,2]
[354282490,1740393066081,-500.0,0.00016602,2]
[354282491,1740393066090,-500.0,0.00016602,2]
[354282492,1740393066099,-500.0,0.00016602,2]
[354282493,1740393066108,-500.0,0.00016602,2]
[354282494,1740393066117,-500.0,0.00016602,2]
[354282495,1740393066127,-500.0,0.00016602,2]
[354282496,1740393066136,-976.63,0.00016602,2]
[354282497,1740393066145,-500.0,0.00016602,2]
[354282498,1740393066154,-478.72023041,0.00016602,2]
[354282499,1740393066163,-758.07,0.00016602,2]
[354282500,1740393066172,-327.093108,0.00016602,2]
[354282501,1740393066181,-500.0,0.00016602,2]
[354282502,1740393066190,-912.3,0.00016602,2]
[354282503,1740393066199,-500.0,0.00016602,2]
[354282504,1740393066208,-500.0,0.00016602,2]
[354282505,1740393066218,-966.44,0.00016602,2]
[354282506,1740393066226,-500.0,0.00016602,2]
[354282507,1740393066235,-571.99,0.00016602,2]
[354282508,1740393066244,-500.0,0.00016602,2]
[354282509,1740393066254,-583.89,0.00016602,2]
[354282510,1740393066262,-508.91,0.00016602,2]
[354282511,1740393066272,-160.368063,0.00016602,2]
[354282512,1740393066281,-500.0,0.00016602,2]
[354282513,1740393066290,-500.0,0.00016602,2]
[354282514,1740393066300,-500.0,0.00016602,2]
[354282515,1740393066311,-500.0,0.00016602,2]
[354282516,1740393066320,-160.368063,0.00016602,2]
[354282517,1740393066330,-500.0,0.00016602,2]
[354282518,1740393066340,-500.0,0.00016602,2]
[354282519,1740393066349,-825.69,0.00016602,2]
[354282520,1740393066358,-500.0,0.00016602,2]
[354282521,1740393066368,-793.11,0.00016602,2]
[354282522,1740393066377,-151.956858,0.00016602,2]
[354282523,1740393066387,-568.54,0.00016602,2]
[354282524,1740393066396,-500.0,0.00016602,2]
[354282525,1740393066406,-688.09,0.00016602,2]
[354282526,1740393066416,-500.0,0.00016602,2]
[354282527,1740393066425,-500.0,0.00016602,2]
[354282528,1740393066436,-500.0,0.00016602,2]
[354282529,1740393066445,-827.28,0.00016602,2]
[354282530,1740393066454,-500.0,0.00016602,2]
[354282531,1740393066464,-500.0,0.00016602,2]
[354282532,1740393066473,-500.0,0.00016602,2]
[354282533,1740393066483,-510.89809691,0.00016602,2]
[354282534,1740393066493,-500.0,0.00016602,2]
[354282535,1740393066502,-500.0,0.00016602,2]
[354282536,1740393066511,-500.0,0.00016602,2]
[354282537,1740393066521,-501.11,0.00016602,2]
[354282538,1740393066533,-571.55,0.00016602,2]
[354282539,1740393066543,-515.57043946,0.00016602,2]
[354282540,1740393066555,-500.0,0.00016602,2]
[354282541,1740393066566,-590.2,0.00016602,2]
[354282542,1740393066575,-500.0,0.00016602,2]
[354282543,1740393066585,-294.02629962,0.00016602,2]
[354282544,1740393066594,-500.0,0.00016602,2]
[354282545,1740393066604,-500.0,0.00016602,2]
[354282546,1740393066613,-500.0,0.00016602,2]
[354282547,1740393066622,-500.0,0.00016602,2]
[354282548,1740393066632,-500.0,0.00016602,2]
[354282549,1740393066642,-500.0,0.00016602,2]
[354282550,1740393066650,-500.0,0.00016602,2]
[354282551,1740393066660,-500.0,0.00016602,2]
[354282552,1740393066670,-509.04534547,0.00016602,2]
[354282553,1740393066680,-505.4069754,0.00016602,2]
[354282554,1740393066690,-649.08869808,0.00016602,2]
[354282555,1740393066699,-510.33956962,0.00016602,2]
[354282556,1740393066708,-500.0,0.00016602,2]
[354282557,1740393066718,-500.0,0.00016602,2]
[354282558,1740393066728,-500.0,0.00016602,2]
[354282559,1740393066737,-500.0,0.00016602,2]
[354282560,1740393066747,-500.0,0.00016602,2]
[354282561,1740393066757,-151.0,0.00016602,2]
[354282562,1740393066766,-500.0,0.00016602,2]
[354282563,1740393066776,-207.268339,0.00016602,2]
[354282564,1740393066786,-259.30054784,0.00016602,2]
[354282565,1740393066795,-500.0,0.00016602,2]
[354282566,1740393066806,-500.0,0.00016602,2]
[354282567,1740393066815,-500.0,0.00016602,2]
[354282568,1740393066825,-500.0,0.00016602,2]
[354282569,1740393066835,-865.78,0.00016602,2]
[354282570,1740393066848,-792.11,0.00016602,2]
[354282571,1740393066858,-500.0,0.00016602,2]
[354282572,1740393066871,-500.0,0.00016602,2]
[354282573,1740393066882,-500.0,0.00016602,2]
[354282574,1740393066892,-502.07,0.00016602,2]
[354282575,1740393066903,-500.0,0.00016602,2]
[354282576,1740393066914,-732.07,0.00016602,2]
[354282577,1740393066926,-536.67,0.00016602,2]
[354282578,1740393066936,-772.46,0.00016602,2]
[354282579,1740393066947,-151.0,0.00016602,2]
[354282580,1740393066957,-500.0,0.00016602,2]
[354282581,1740393066967,-994.92,0.00016602,2]
[354282582,1740393066976,-500.0,0.00016602,2]
[354282583,1740393066985,-719.27,0.00016602,2]
[354282584,1740393066995,-152.057265,0.00016602,2]
[354282585,1740393067005,-500.0,0.00016602,2]
[354282586,1740393067015,-500.0,0.00016602,2]
[354282587,1740393067025,-576.942674,0.00016602,2]
[354282588,1740393067036,-500.0,0.00016602,2]
[354282589,1740393067046,-732.94,0.00016602,2]
[354282590,1740393067059,-500.0,0.00016602,2]
[354282591,1740393067070,-576.942674,0.00016602,2]
[354282592,1740393067081,-894.91,0.00016602,2]
[354282593,1740393067090,-835.59,0.00016602,2]
[354282594,1740393067101,-1034.89,0.00016602,2]
[354282595,1740393067110,-500.0,0.00016602,2]
[354282596,1740393067119,-1083.32,0.00016602,2]
[354282597,1740393067128,-500.0,0.00016602,2]
[354282598,1740393067138,-500.0,0.00016602,2]
[354282599,1740393067147,-649.75,0.00016602,2]
[354282600,1740393067157,-528.24672819,0.00016602,2]
[354282601,1740393067167,-306.25528113,0.00016602,2]
[354282602,1740393067177,-547.93,0.00016602,2]
[354282603,1740393067187,-500.0,0.00016602,2]
[354282604,1740393067196,-500.0,0.00016602,2]
[354282605,1740393067206,-500.0,0.00016602,2]
[354282606,1740393067216,-500.0,0.00016602,2]
[354282607,1740393067226,-500.0,0.00016602,2]
[354282608,1740393067236,-500.0,0.00016602,2]
[354282609,1740393067245,-500.0,0.00016602,2]
[354282610,1740393067255,-689.58,0.00016602,2]
[354282611,1740393067265,-151.0,0.00016602,2]
[354282612,1740393067275,-685.53,0.00016602,2]
[354282613,1740393067285,-515.1888843,0.00016602,2]
[354282614,1740393067294,-554.23814767,0.00016602,2]
[354282615,1740393067306,-500.0,0.00016602,2]
[354282616,1740393067318,-500.0,0.00016602,2]
[354282617,1740393067327,-500.0,0.00016602,2]
[354282618,1740393067337,-152.640069,0.00016602,2]
[354282619,1740393067347,-500.0,0.00016602,2]
[354282620,1740393067356,-500.0,0.00016602,2]
[354282621,1740393067366,-500.0,0.00016602,2]
[354282622,1740393067375,-500.0,0.00016602,2]
[354282623,1740393067384,-500.0,0.00016602,2]
[354282624,1740393067393,-500.0,0.00016602,2]
[354282625,1740393067403,-500.0,0.00016602,2]
[354282626,1740393067412,-770.75,0.00016602,2]
[354282627,1740393067421,-596.16,0.00016602,2]
[354282628,1740393067431,-1066.15,0.00016602,2]
[354282629,1740393067441,-500.0,0.00016602,2]
[354282630,1740393067450,-939.56,0.00016602,2]
[354282631,1740393067459,-535.53,0.00016602,2]
[354282632,1740393067468,-500.0,0.00016602,2]
[354282633,1740393067479,-500.0,0.00016602,2]
[354282634,1740393067488,-1713.16,0.00016602,2]
[354282635,1740393067497,-999.11,0.00016602,2]
[354282636,1740393067507,-545.3,0.00016602,2]
[354282637,1740393067516,-500.0,0.00016602,2]
[354282638,1740393067526,-988.44,0.00016602,2]
[354282639,1740393067536,-1914.59,0.00016602,2]
[354282640,1740393067545,-1771.19,0.00016602,2]
[354282641,1740393067556,-205.106864,0.00016602,2]
[354282642,1740393067565,-500.0,0.00016602,2]
[354282643,1740393067575,-151.0,0.00016602,2]
[354282644,1740393067585,-205.106864,0.00016602,2]
[354282645,1740393067594,-500.0,0.00016602,2]
[354282646,1740393067606,-2047.21,0.00016602,2]
[354282647,1740393067620,-4053.22,0.00016602,2]
[354282648,1740393067631,-857.92,0.00016602,2]
[354282649,1740393067641,-1114.15,0.00016602,2]
[354282650,1740393067651,-507.52,0.00016602,2]
[354282651,1740393067661,-760.3,0.00016602,2]
[354282652,1740393067670,-1134.98,0.00016602,2]
[354282653,1740393067680,-164.410286,0.00016602,2]
[354282654,1740393067689,-1537.05,0.00016602,2]
[354282655,1740393067699,-500.0,0.00016602,2]
[354282656,1740393067709,-164.410286,0.00016602,2]
[354282657,1740393067719,-2359.95,0.00016602,2]
[354282658,1740393067729,-1103.35,0.00016602,2]
[354282659,1740393067738,-242.118806,0.00016602,2]
[354282660,1740393067748,-151.0,0.00016602,2]
[354282661,1740393067758,-500.0,0.00016602,2]
[354282662,1740393067768,-4184.04,0.00016602,2]
[354282663,1740393067778,-242.118806,0.00016602,2]
[354282664,1740393067788,-1851.33,0.00016602,2]
[354282665,1740393067798,-500.0,0.00016602,2]
[354282666,1740393067810,-2354.25,0.00016602,2]
[354282667,1740393067820,-613.1,0.00016602,2]
[354282668,1740393067830,-971.17,0.00016602,2]
[354282669,1740393067841,-3563.69,0.00016602,2]
[354282670,1740393067853,-500.0,0.00016602,2]
[354282671,1740393067863,-500.0,0.00016602,2]
[354282672,1740393067873,-2009.96,0.00016602,2]
[354282673,1740393067884,-500.0,0.00016602,2]
[354282674,1740393067893,-1543.4,0.00016602,2]
[354282675,1740393067903,-533.77,0.00016602,2]
[354282676,1740393067912,-633.74,0.00016602,2]
[354282677,1740393067922,-2242.87,0.00016602,2]
[354282678,1740393067932,-1803.65,0.00016602,2]
[354282679,1740393067942,-500.0,0.00016602,2]
[354282680,1740393067951,-500.0,0.00016602,2]
[354282681,1740393067960,-508.7247469,0.00016602,2]
[354282682,1740393067970,-2187.68,0.00016602,2]
[354282683,1740393067979,-728.65,0.00016602,2]
[354282684,1740393067989,-6441.69,0.00016602,2]
[354282685,1740393067998,-530.59,0.00016602,2]
[354282686,1740393068008,-552.52,0.00016602,2]
[354282687,1740393068017,-500.0,0.00016602,2]
[354282688,1740393068027,-1823.33,0.00016602,2]
[354282689,1740393068036,-500.0,0.00016602,2]
[354282690,1740393068046,-580.19,0.00016602,2]
[354282691,1740393068056,-2359.28,0.00016602,2]
[354282692,1740393068067,-500.0,0.00016602,2]
[354282693,1740393068077,-500.0,0.00016602,2]
[354282694,1740393068087,-6310.46,0.00016602,2]
[354282695,1740393068096,-1453.83,0.00016602,2]
[354282696,1740393068106,-1754.56,0.00016602,2]
[354282697,1740393068116,-151.0,0.00016602,2]
[354282698,1740393068126,-510.87797159,0.00016602,2]
[354282699,1740393068136,-2395.13,0.00016602,2]
[354282700,1740393068145,-500.0,0.00016602,2]
[354282701,1740393068155,-500.0,0.00016602,2]
[354282702,1740393068165,-500.0,0.00016602,2]
[354282703,1740393068175,-1530.26,0.00016602,2]
[354282704,1740393068185,-1729.98,0.00016602,2]
[354282705,1740393068195,-523.34,0.00016602,2]
[354282706,1740393068205,-851.1318,0.00016602,2]
[354282707,1740393068215,-1888.7,0.00016602,2]
[354282708,1740393068225,-887.15,0.00016602,2]
[354282709,1740393068235,-561.68,0.00016602,2]
[354282710,1740393068247,-851.1318,0.00016602,2]
[354282711,1740393068257,-500.0,0.00016602,2]
[354282712,1740393068268,-1893.25,0.00016602,2]
[354282713,1740393068277,-1352.31,0.00016602,2]
[354282714,1740393068289,-1229.83,0.00016602,2]
[354282715,1740393068299,-500.0,0.00016602,2]
[354282716,1740393068310,-1592.71,0.00016602,2]
[354282717,1740393068321,-2122.57,0.00016602,2]
[354282718,1740393068330,-1563.39,0.00016602,2]
[354282719,1740393068340,-3181.44,0.00016602,2]
[354282720,1740393068350,-500.0,0.00016602,2]
[354282721,1740393068359,-931.35,0.00016602,2]
[354282722,1740393068369,-1364.19,0.00016602,2]
[354282723,1740393068379,-1399.69,0.00016602,2]
[354282724,1740393068389,-947.59,0.00016602,2]
[354282725,1740393068562,-1158.15,0.00016602,2]
[354282726,1740393068572,-1055.82,0.00016602,2]
[354282727,1740393068581,-1335.01,0.00016602,2]
[354282728,1740393068591,-1743.38,0.00016602,2]
[354282729,1740393068600,-1124.16,0.00016602,2]
[354282730,1740393068609,-1245.15,0.00016602,2]
[354282731,1740393068618,-862.87,0.00016602,2]
[354282732,1740393068628,-737.22,0.00016602,2]
[354282733,1740393068638,-3379.84,0.00016602,2]
[354282734,1740393068647,-2190.52,0.00016602,2]
[354282735,1740393068657,-500.0,0.00016602,2]
[354282736,1740393068666,-1993.18,0.00016602,2]
[354282737,1740393068675,-2255.32,0.00016602,2]
[354282738,1740393068684,-2112.38,0.00016602,2]
[354282739,1740393068694,-1406.66,0.00016602,2]
[354282740,1740393068703,-511.28,0.00016602,2]
[354282741,1740393068712,-1338.87,0.00016602,2]
[354282742,1740393068721,-1163.78,0.00016602,2]
[354282743,1740393068731,-899.89,0.00016602,2]
[354282744,1740393068740,-2575.6,0.00016602,2]
[354282745,1740393068750,-517.92703298,0.00016602,7]
[354282746,1740393068760,-500.0,0.00016602,2]
[354282747,1740393068769,-1931.36,0.00016602,2]
[354282748,1740393068778,-651.74,0.00016602,2]
[354282749,1740393068788,-500.0,0.00016602,2]
[354282750,1740393068797,-3875.26,0.00016602,2]
[354282751,1740393068807,-714.88,0.00016602,2]
[354282752,1740393068816,-500.0,0.00016602,2]
[354282753,1740393068826,-4627.1,0.00016602,2]
[354282754,1740393068836,-2331.1,0.00016602,2]
[354282755,1740393068847,-794.55,0.00016602,2]
[354282756,1740393068856,-811.87,0.00016602,2]
[354282757,1740393068865,-1360.35,0.00016602,2]
[354282758,1740393068874,-757.29,0.00016602,2]
[354282759,1740393068885,-500.0,0.00016602,2]
[354282760,1740393068894,-500.0,0.00016602,2]
[354282761,1740393068903,-500.0,0.00016602,2]
[354282762,1740393068912,-500.0,0.00016602,2]
[354282763,1740393068922,-1905.52,0.00016602,2]
[354282764,1740393068931,-1832.68,0.00016602,2]
[354282765,1740393068940,-500.0,0.00016602,2]
[354282766,1740393068949,-1012.51,0.00016602,2]
[354282767,1740393068959,-500.0,0.00016602,2]
[354282768,1740393068967,-500.0,0.00016602,2]
[354282769,1740393068977,-500.0,0.00016602,2]
[354282770,1740393068986,-329.93878389,0.00016602,2]
[354282771,1740393068995,-1130.11,0.00016602,2]
[354282772,1740393069004,-500.0,0.00016602,2]
[354282773,1740393069015,-2153.01,0.00016602,2]
[354282774,1740393069024,-500.0,0.00016602,2]
[354282775,1740393069033,-500.0,0.00016602,2]
[354282776,1740393069042,-1435.16,0.00016602,2]
[354282777,1740393069052,-2176.8,0.00016602,2]
[354282778,1740393069060,-151.243359,0.00016602,2]
[354282779,1740393069070,-151.0,0.00016602,2]
[354282780,1740393069079,-500.0,0.00016602,2]
[354282781,1740393069088,-1895.66,0.00016602,2]
[354282782,1740393069097,-683.14,0.00016602,2]
[354282783,1740393069106,-500.0,0.00016602,2]
[354282784,1740393069116,-500.0,0.00016602,2]
[354282785,1740393069125,-500.0,0.00016602,2]
[354282786,1740393069135,-1239.34,0.00016602,2]
[354282787,1740393069144,-2117.99,0.00016602,2]
[354282788,1740393069153,-2225.26,0.00016602,2]
[354282789,1740393069163,-312.393513,0.00016602,2]
[354282790,1740393069172,-1435.64,0.00016602,2]
[354282791,1740393069181,-876.4,0.00016602,2]
[354282792,1740393069190,-1250.73,0.00016602,2]
[354282793,1740393069200,-1238.73,0.00016602,2]
[354282794,1740393069209,-312.393513,0.00016602,2]
[354282795,1740393069219,-507.39147837,0.00016602,2]
[354282796,1740393069228,-1448.82,0.00016602,2]
[354282797,1740393069237,-500.0,0.00016602,2]
[354282798,1740393069246,-151.0,0.00016602,2]
[354282799,1740393069255,-500.0,0.00016602,2]
[354282800,1740393069263,-1222.74,0.00016602,2]
[354282801,1740393069272,-500.0,0.00016602,2]
[354282802,1740393069281,-2133.06,0.00016602,2]
[354282803,1740393069290,-500.0,0.00016602,2]
[354282804,1740393069299,-500.0,0.00016602,2]
[354282805,1740393069309,-902.39,0.00016602,2]
[354282806,1740393069318,-1714.23,0.00016602,2]
[354282807,1740393069327,-2952.34,0.00016602,2]
[354282808,1740393069336,-500.0,0.00016602,2]
[354282809,1740393069345,-637.55,0.00016602,2]
[354282810,1740393069355,-1345.12,0.00016602,2]
[354282811,1740393069364,-455.827672,0.00016602,2]
[354282812,1740393069373,-500.0,0.00016602,2]
[354282813,1740393069383,-1346.53,0.00016602,2]
[354282814,1740393069391,-500.0,0.00016602,2]
[354282815,1740393069401,-1153.09,0.00016602,2]
[354282816,1740393069410,-455.827672,0.00016602,2]
[354282817,1740393069419,-500.0,0.00016602,2]
[354282818,1740393069428,-1050.72,0.00016602,2]
[354282819,1740393069438,-1549.23,0.00016602,2]
[354282820,1740393069447,-500.0,0.00016602,2]
[354282821,1740393069457,-709.856055,0.00016602,2]
[354282822,1740393069467,-500.0,0.00016602,2]
[354282823,1740393069475,-2116.78,0.00016602,2]
[354282824,1740393069485,-709.856055,0.00016602,2]
[354282825,1740393069493,-1323.73,0.00016602,2]
[354282826,1740393069502,-968.02,0.00016602,2]
[354282827,1740393069511,-296.08411855,0.00016602,2]
[354282828,1740393069520,-1976.05,0.00016602,2]
[354282829,1740393069529,-500.0,0.00016602,2]
[354282830,1740393069538,-2709.27,0.00016602,2]
[354282831,1740393069548,-500.0,0.00016602,2]
[354282832,1740393069559,-500.0,0.00016602,2]
[354282833,1740393069568,-500.0,0.00016602,2]
[354282834,1740393069577,-1417.13,0.00016602,2]
[354282835,1740393069586,-517.89088301,0.00016602,2]
[354282836,1740393069595,-649.11,0.00016602,2]
[354282837,1740393069604,-500.0,0.00016602,2]
[354282838,1740393069614,-500.0,0.00016602,2]
[354282839,1740393069623,-500.0,0.00016602,2]
[354282840,1740393069632,-517.98,0.00016602,2]
[354282841,1740393069642,-1383.1,0.00016602,2]
[354282842,1740393069651,-575.9,0.00016602,2]
[354282843,1740393069662,-639.53,0.00016602,2]
[354282844,1740393069671,-2137.13,0.00016602,2]
[354282845,1740393069680,-1329.85,0.00016602,2]
[354282846,1740393069689,-2522.02,0.00016602,2]
[354282847,1740393069699,-500.0,0.00016602,2]
[354282848,1740393069708,-1057.9,0.00016602,2]
[354282849,1740393069719,-500.0,0.00016602,2]
[354282850,1740393069728,-2173.78,0.00016602,2]
[354282851,1740393069737,-500.0,0.00016602,2]
[354282852,1740393069747,-3885.36579486,0.0001662,2]
[354282853,1740393069757,-1500.0,0.00016622,2]
[354282854,1740393069769,-500.0,0.00016673,2]
[354282855,1740393069779,-242.31445934,0.00016673,2]
[354282856,1740393069788,-500.0,0.00016673,2]
[354282857,1740393069798,-256.84877054,0.00016673,2]
[354282858,1740393069808,-500.0,0.00016673,2]
[354282859,1740393069819,-500.0,0.00016673,2]
[354282860,1740393069830,-500.0,0.00016673,2]
[354282861,1740393069840,-500.0,0.00016673,2]
[354282862,1740393069854,-608.18153612,0.00016673,2]
[354282863,1740393069863,-500.51949667,0.00016673,2]
[354282864,1740393069873,-1000.0,0.00016684,2]
[354282865,1740393069882,-1000.0,0.00016684,2]
[354282866,1740393069891,-1000.0,0.00016684,2]
[354282867,1740393069901,-1000.0,0.00016684,2]
[354282868,1740393069910,-1000.0,0.00016684,2]
[354282869,1740393069920,-1000.0,0.00016684,2]
[354282870,1740393069930,-1000.0,0.00016684,2]
[354282871,1740393069940,-1000.0,0.00016684,2]
[354282872,1740393069949,-1000.0,0.00016684,2]
[354282873,1740393069958,-1004.69186982,0.00016684,2]
[354282874,1740393069967,-1000.0,0.00016684,2]
[354282875,1740393069976,-1000.0,0.00016684,2]
[354282876,1740393069986,-1000.0,0.00016684,2]
[354282877,1740393069995,-1000.0,0.00016684,2]
[354282878,1740393070004,-1000.0,0.00016684,2]
[354282879,1740393070014,-1000.0,0.00016684,2]
[354282880,1740393070023,-1000.0,0.00016684,2]
[354282881,1740393070033,-1000.0,0.00016684,2]
[354282882,1740393070042,-1000.0,0.00016684,2]
[354282883,1740393070054,-1000.0,0.00016684,2]
[354282884,1740393070063,-151.0,0.00016684,2]
[354282885,1740393070073,-151.0,0.00016684,2]
[354282886,1740393070083,-151.861828,0.00016684,2]
[354282887,1740393070092,-316.29717576,0.00016684,2]
[354282888,1740393070102,-500.0,0.00016684,2]
[354282889,1740393070112,-500.0,0.00016684,2]
[354282890,1740393070121,-151.0,0.00016684,2]
[354282891,1740393070131,-500.0,0.00016684,2]
[354282892,1740393070141,-500.0,0.00016684,2]
[354282893,1740393070150,-500.0,0.00016684,2]
[354282894,1740393070160,-188.29900269,0.00016684,2]
[354282895,1740393070170,-500.0,0.00016684,2]
[354282896,1740393070179,-500.0,0.00016684,2]
[354282897,1740393070188,-500.0,0.00016684,2]
[354282898,1740393070198,-171.901977,0.00016684,2]
[354282899,1740393070208,-500.0,0.00016684,2]
[354282900,1740393070217,-171.901977,0.00016684,2]
[354282901,1740393070226,-500.0,0.00016684,2]
[354282902,1740393070235,-151.0,0.00016684,2]
[354282903,1740393070246,-377.3916367,0.00016684,2]
[354282904,1740393070258,-224.66230931,0.00016684,2]
[354282905,1740393070272,-200.976492,0.00016684,2]
[354282906,1740393070285,-500.0,0.00016684,2]
[354282907,1740393070296,-500.0,0.00016684,2]